Workbook

Sheet Control (hidden)
D4: m | E4: ft
C5: 1 | D5: =IF(C5=1,#REF!,#REF!*0.3048) ->  | E5: =IF(C5=2,#REF!,#REF!*3.280839895) -> 
D6: Kgs | E6: Lbs
C7: 1 | D7: =IF(C7=1,#REF!,#REF!*0.45359237) ->  | E7: =IF(C7=2,#REF!,#REF!*2.204622622) -> 
C10: m | D10: kg
C11: ft | D11: lb

Sheet data (hidden)
C1: limited data
C2: 4.400674331 | D2: 6.456944328 | E2: 10.29724014
C3: -1.0015 | D3: -0.9996 | E3: -0.9969
C5: full data
C6: 4.563304495 | D6: 6.612631957 | E6: 10.55089825
C7: -0.8489 | D7: -0.8472 | E7: -0.8476
C9: =IF(Control!D7<1,data!C2,data!C6) ->  | D9: =IF(Control!D7<1,data!D2,data!D6) ->  | E9: =IF(Control!D7<1,data!E2,data!E6) -> 
C10: =IF(Control!D7<1,data!C3,data!C7) ->  | D10: =IF(Control!D7<1,data!D3,data!D7) ->  | E10: =IF(Control!D7<1,data!E3,data!E7) -> 
B14: Mass | C14: Slight | D14: Minor | E14: Major | F14: Fatality | I14: Notes
A15: 0.1 | B15: =IF(Control!D$7<1,A15,A15*10) ->  | C15: =C$9*$B15^(C$10) ->  | D15: =D$9*$B15^(D$10) ->  | F15: =E15 ->  | H15: 1 | I15: Dropped object classification is defined by mass of object and height from which it falls
A16: =A15+0.01 -> 0.11 | B16: =IF(Control!D$7<1,A16,A16*10) ->  | H16: 2 | I16: The threshold values between classifications are defined by best-fit curves to the "probit" data
A17: =A16+0.01 -> 0.12 | B17: =IF(Control!D$7<1,A17,A17*10) ->  | H17: 3 | I17: The best fit curves are presented as "limited data" for mass in the range 0.1 to 1.0 kg
A18: 0.13 | B18: =IF(Control!D$7<1,A18,A18*10) ->  | H18: 4 | I18: The best fit curves are presented as "full data" for mass in the range 1.0 to 10.0 kg
A19: 0.14 | B19: =IF(Control!D$7<1,A19,A19*10) ->  | H19: 5 | I19: The best fit curves are presented in the format height= A*mass^B
A20: 0.15 | B20: =IF(Control!D$7<1,A20,A20*10) ->  | H20: 6 | I20: The probit data is as follows
A21: 0.16 | B21: =IF(Control!D$7<1,A21,A21*10) ->  | I21: Pr =-29.15+2,1*ln(m*v^5.115) | M21: 0.001<m<0.1 | O21: Pr = | P21: 7 | Q21: High | R21: High (99% fatality)
A22: 0.17 | B22: =IF(Control!D$7<1,A22,A22*10) ->  | I22: Pr =-17.56+5,3*ln(0.5*m^2) | M22: 0.1<m<4.5 | O22: Pr = | P22: 4.2 | Q22: Medium | R22: Medium (21% fatality)
A23: 0.18 | B23: =IF(Control!D$7<1,A23,A23*10) ->  | I23: Pr=-13.19+10.54*ln(v) | M23: m > 4.5 | O23: Pr = | P23: 2.5 | Q23: Safe | R23: Safe (<0.1% fatality)
A24: 0.19 | B24: =IF(Control!D$7<1,A24,A24*10) ->  | I24: where m is mass in kg and v is velocity in metres/second derived from assuming potential energy of mass*gravitational constant* height (mgh)
A25: 0.2 | B25: =IF(Control!D$7<1,A25,A25*10) ->  | I25: is fully converted (without losses) to kinetic energy one-half*mass*velocity squared (0.5*m*v^2) so that v^2 = 2*g*h
A26: 0.21 | B26: =IF(Control!D$7<1,A26,A26*10) ->  | H26: 7 | I26: The probit function indicates the the relationship between exposure and the probability that the consequence occurs
A27: 0.22 | B27: =IF(Control!D$7<1,A27,A27*10) ->  | H27: 8 | I27: The probit data category of High has been used to define the fatal/DAWFC threshold
A28: 0.23 | B28: =IF(Control!D$7<1,A28,A28*10) ->  | H28: 9 | I28: The probit data category of Medium has been used to define the DAWFC/Recordable threshold
A29: 0.24 | B29: =IF(Control!D$7<1,A29,A29*10) ->  | H29: 10 | I29: The probit data category of Safe has been used to define the Recordable/First Aid threshold
A30: 0.25 | B30: =IF(Control!D$7<1,A30,A30*10) ->  | H30: 11 | I30: DAWFC = Days Away From Work Case
A31: 0.26 | B31: =IF(Control!D$7<1,A31,A31*10) ->  | D31: =D$9*$B31^(D$10) ->  | H31: 12 | I31: The best fit curves are fitted to data that does not exactly achieve the 7.00, 4.20 and 2.50 targets,
A32: 0.27 | B32: =IF(Control!D$7<1,A32,A32*10) ->  | I32: but is reproduced for this chart because it matches the DROPS calculator card.
A33: 0.28 | B33: =IF(Control!D$7<1,A33,A33*10) ->  | H33: 13 | I33: For future revisions, the 7.00, 4.20 and 2.50 target values may be accurately achieved by use of the "goal seek" function
A34: 0.29 | B34: =IF(Control!D$7<1,A34,A34*10) ->  | H34: 14 | I34: The best fit curves are fitted to data using mass values of 0.1 kg and greater and so are focussed on skull fracture
A35: 0.3 | B35: =IF(Control!D$7<1,A35,A35*10) -> 
A36: 0.31 | B36: =IF(Control!D$7<1,A36,A36*10) -> 
A37: 0.32 | B37: =IF(Control!D$7<1,A37,A37*10) -> 
A38: 0.33 | B38: =IF(Control!D$7<1,A38,A38*10) -> 
A39: 0.34 | B39: =IF(Control!D$7<1,A39,A39*10) -> 
A40: 0.35 | B40: =IF(Control!D$7<1,A40,A40*10) -> 
A41: 0.36 | B41: =IF(Control!D$7<1,A41,A41*10) -> 
A42: 0.37 | B42: =IF(Control!D$7<1,A42,A42*10) -> 
A43: 0.38 | B43: =IF(Control!D$7<1,A43,A43*10) -> 
A44: 0.39 | B44: =IF(Control!D$7<1,A44,A44*10) -> 
A45: 0.4 | B45: =IF(Control!D$7<1,A45,A45*10) -> 
A46: 0.41 | B46: =IF(Control!D$7<1,A46,A46*10) -> 
A47: 0.42 | B47: =IF(Control!D$7<1,A47,A47*10) -> 
A48: 0.43 | B48: =IF(Control!D$7<1,A48,A48*10) ->  | C48: =C$9*$B48^(C$10) -> 
A49: 0.44 | B49: =IF(Control!D$7<1,A49,A49*10) -> 
A50: 0.45 | B50: =IF(Control!D$7<1,A50,A50*10) -> 
A51: 0.46 | B51: =IF(Control!D$7<1,A51,A51*10) -> 
A52: 0.47 | B52: =IF(Control!D$7<1,A52,A52*10) -> 
A53: 0.48 | B53: =IF(Control!D$7<1,A53,A53*10) -> 
A54: 0.49 | B54: =IF(Control!D$7<1,A54,A54*10) -> 
A55: 0.5 | B55: =IF(Control!D$7<1,A55,A55*10) -> 
A56: 0.51 | B56: =IF(Control!D$7<1,A56,A56*10) -> 
A57: 0.52 | B57: =IF(Control!D$7<1,A57,A57*10) -> 
A58: 0.53 | B58: =IF(Control!D$7<1,A58,A58*10) -> 
A59: 0.54 | B59: =IF(Control!D$7<1,A59,A59*10) -> 
A60: 0.55 | B60: =IF(Control!D$7<1,A60,A60*10) -> 
A61: 0.56 | B61: =IF(Control!D$7<1,A61,A61*10) -> 
A62: 0.57 | B62: =IF(Control!D$7<1,A62,A62*10) -> 
A63: 0.58 | B63: =IF(Control!D$7<1,A63,A63*10) -> 
A64: 0.59 | B64: =IF(Control!D$7<1,A64,A64*10) -> 
A65: 0.6 | B65: =IF(Control!D$7<1,A65,A65*10) -> 
A66: 0.61 | B66: =IF(Control!D$7<1,A66,A66*10) ->  | C66: =C$9*$B66^(C$10) -> 
A67: 0.62 | B67: =IF(Control!D$7<1,A67,A67*10) -> 
A68: 0.63 | B68: =IF(Control!D$7<1,A68,A68*10) -> 
A69: 0.64 | B69: =IF(Control!D$7<1,A69,A69*10) -> 
A70: 0.65 | B70: =IF(Control!D$7<1,A70,A70*10) -> 
A71: 0.66 | B71: =IF(Control!D$7<1,A71,A71*10) -> 
A72: 0.67 | B72: =IF(Control!D$7<1,A72,A72*10) -> 
A73: 0.68 | B73: =IF(Control!D$7<1,A73,A73*10) -> 
A74: 0.69 | B74: =IF(Control!D$7<1,A74,A74*10) -> 
A75: 0.7 | B75: =IF(Control!D$7<1,A75,A75*10) -> 
A76: 0.71 | B76: =IF(Control!D$7<1,A76,A76*10) -> 
A77: 0.72 | B77: =IF(Control!D$7<1,A77,A77*10) -> 
A78: 0.73 | B78: =IF(Control!D$7<1,A78,A78*10) -> 
A79: 0.74 | B79: =IF(Control!D$7<1,A79,A79*10) -> 
A80: 0.75 | B80: =IF(Control!D$7<1,A80,A80*10) ->  | F80: =E80 -> 
A81: =A80+0.01 -> 0.76 | B81: =IF(Control!D$7<1,A81,A81*10) -> 
A82: 0.77 | B82: =IF(Control!D$7<1,A82,A82*10) -> 
A83: 0.78 | B83: =IF(Control!D$7<1,A83,A83*10) -> 
A84: 0.79 | B84: =IF(Control!D$7<1,A84,A84*10) -> 
A85: 0.8 | B85: =IF(Control!D$7<1,A85,A85*10) -> 
A86: 0.81 | B86: =IF(Control!D$7<1,A86,A86*10) -> 
A87: 0.82 | B87: =IF(Control!D$7<1,A87,A87*10) -> 
A88: 0.83 | B88: =IF(Control!D$7<1,A88,A88*10) -> 
A89: 0.84 | B89: =IF(Control!D$7<1,A89,A89*10) -> 
A90: 0.85 | B90: =IF(Control!D$7<1,A90,A90*10) -> 
A91: 0.86 | B91: =IF(Control!D$7<1,A91,A91*10) -> 
A92: 0.87 | B92: =IF(Control!D$7<1,A92,A92*10) -> 
A93: 0.88 | B93: =IF(Control!D$7<1,A93,A93*10) -> 
A94: 0.89 | B94: =IF(Control!D$7<1,A94,A94*10) -> 
A95: 0.9 | B95: =IF(Control!D$7<1,A95,A95*10) -> 
A96: 0.91 | B96: =IF(Control!D$7<1,A96,A96*10) -> 
A97: 0.92 | B97: =IF(Control!D$7<1,A97,A97*10) -> 
A98: 0.93 | B98: =IF(Control!D$7<1,A98,A98*10) -> 
A99: 0.94 | B99: =IF(Control!D$7<1,A99,A99*10) -> 
A100: 0.95 | B100: =IF(Control!D$7<1,A100,A100*10) -> 
A101: 0.96 | B101: =IF(Control!D$7<1,A101,A101*10) -> 
A102: 0.97 | B102: =IF(Control!D$7<1,A102,A102*10) -> 
A103: 0.98 | B103: =IF(Control!D$7<1,A103,A103*10) -> 
A104: 0.99 | B104: =IF(Control!D$7<1,A104,A104*10) -> 
A105: 1 | B105: =IF(Control!D$7<1,A105,A105*10) -> 

Sheet DROP Cone
B2: POTENTIAL DROP CONE - ACTUAL HEIGHT OF DROPPED OBJECT | R2: POTENTIAL DROP CONE - POTENTIAL MAXIMUM HEIGHT OF DROPPED OBJECT
B3: 60 | C3: KG | R3: 50 | S3: KG
B4: 15 | C4: Deg | D4: =TAN(B4*PI()/180) -> 0.2679491924 | R4: 15 | S4: Deg | T4: =TAN(R4*PI()/180) -> 0.2679491924
C5: X | D5: 5 | E5: Drop (m) | I5: Meters | J5: to | K5: Feet | L5: 51.82 | M5: m | N5: =CONVERT(L5,"m","ft") -> 170.0131234 | O5: ft | S5: X | T5: 51.82 | U5: Drop (m) | Y5: Meters | Z5: to | AA5: Feet | AB5: 51.82 | AC5: m | AD5: =CONVERT(AB5,"m","ft") -> 170.0131234 | AE5: ft
D6: =(D4*D5) -> 1.339745962 | E6: Drop Cone | I6: Feet | J6: to | K6: Meters | L6: 82.02 | M6: ft | N6: =CONVERT(L6,"ft","m") -> 24.999696 | O6: m | T6: =(T4*T5) -> 13.88512715 | U6: Drop Cone | Y6: Feet | Z6: to | AA6: Meters | AB6: 82.02 | AC6: ft | AD6: =CONVERT(AB6,"ft","m") -> 24.999696 | AE6: m
I7: lbs | J7: to | K7: kg | L7: 110.23 | M7: lbs | N7: =CONVERT(L7,"lbm","kg") -> 49.99948695 | O7: kg | Y7: lbs | Z7: to | AA7: kg | AB7: 110.23 | AC7: lbs | AD7: =CONVERT(AB7,"lbm","kg") -> 49.99948695 | AE7: kg
I8: kg | J8: to | K8: lbs | L8: 50 | M8: kg | N8: =CONVERT(L8,"kg","lbm") -> 110.2311311 | O8: lbs | Y8: kg | Z8: to | AA8: lbs | AB8: 50 | AC8: kg | AD8: =CONVERT(AB8,"kg","lbm") -> 110.2311311 | AE8: lbs
C28: Mass of dropped object = | E28: =B3 -> 60 | F28: Kg | S28: Mass of dropped object = | U28: =R3 -> 50 | V28: Kg
C29: Height of dropped object = | E29: =D5 -> 5 | F29: m | S29: Height of dropped object = | U29: =T5 -> 51.82 | V29: m
C30: Velocity before impact = | E30: =SQRT(SUM(E29*9.8)*2) -> 9.899494937 | F30: m/s | S30: Velocity before impact = | U30: =SQRT(SUM(U29*9.8)*2) -> 31.86960935 | V30: m/s
C31: Kinectic Energy = | E31: =SUM(E28*(E30*E30)/2) -> 2940 | F31: J | G31: =E31/1000 -> 2.94 | H31: Kj | S31: Kinectic Energy = | U31: =SUM(U28*(U30*U30)/2) -> 25391.8 | V31: J | W31: =U31/1000 -> 25.3918 | X31: Kj
C32: Average Impact force | D32: Average impact force = F | E32: =SUM(E31*10) -> 29400 | F32: newtons | S32: Average Impact force | T32: Average impact force = F | U32: =SUM(U31*10) -> 253918 | V32: newtons

Sheet Sheet1 (hidden)
